Cogmind - Beta 13 @@@ ROGUE MODE // 2024.04.05 @ 21:02:01 Player: xXK1NG_0F_C0GM1NDXx Result: Destroyed by Y-45 Defender with Heavy Assault Rifle Performance ------------- Evolutions (1) 500 Regions Visited (3) 600 Robots Destroyed (36) 180 Value Destroyed (883) 883 Prototype IDs (3) 60 Alien Tech Used (0) 0 Bonus (0) 0 TOTAL SCORE: 2223 Bonus ------- None Cogmind --------- Core Integrity 0/400 Matter 300/300 Energy 100/100 System Corruption 0% Temperature Cool (9) Movement Core (1400) Ox27 Location -9/Materials Parts ------- > --- POWER (1) -------- (None) > --- PROPULSION (2) --- (None) > --- UTILITY (4) ------ Huge Storage Unit Visual Processing Unit > --- WEAPON (2) ------- Advanced Beam Cannon > --- INVENTORY (25) --- Light Ion Engine Light Ion Engine Light Ion Engine Power Shielding Power Shielding Power Shielding Tractor Beam Autogun Peak State ------------ > --- POWER ------------ Heavy Ion Engine > --- PROPULSION ------- Light Treads > --- UTILITY ---------- Huge Storage Unit Improved Terrain Scanner Seismic Detector Light Armor Plating > --- WEAPON ----------- Improved EM Shotgun Improved EM Shotgun > --- INVENTORY -------- Light Ion Engine Light Ion Engine Power Shielding Power Shielding Power Shielding Power Shielding Power Shielding Power Shielding Tractor Beam Light Assault Rifle Grenade Launcher Datajack [Rating: 17] Favorites ----------- Power Light Nuclear Core Engine Heavy Ion Engine Power Core Light Nuclear Core Propulsion Light Treads Treads Light Treads Leg Aluminum Leg Hover Unit Hover Unit Utility Huge Storage Unit Device Improved Terrain Scanner Storage Huge Storage Unit Processor Visual Processing Unit Protection Power Shielding Weapon Assault Rifle Energy Gun Medium Laser Energy Cannon Advanced Beam Cannon Ballistic Gun Assault Rifle Launcher Grenade Launcher Build | -11 -10 -10 -9 ------- Run | Yrd Mat Min Mat Slots Evolved 2 | . . . 2 Power . | . . . . Propulsion . | . . . . Utility 2 | . . . 2 Weapon . | . . . . Parts Attached 30 | 6 5 1 18 Power 3 | 1 1 . 1 Engine 2 | 1 . . 1 Core 1 | . 1 . . Reactor . | . . . . Propulsion 5 | 2 . . 3 Treads 3 | 2 . . 1 Leg 1 | . . . 1 Wheel . | . . . . Hover 1 | . . . 1 Flight . | . . . . Utility 9 | 1 2 . 6 Device 3 | . . . 3 Storage 2 | 1 1 . . Processor 1 | . . . 1 Hackware . | . . . . Protection 3 | . 1 . 2 Artifact . | . . . . Weapon 13 | 2 2 1 8 Energy Gun 5 | 1 . . 4 Energy Cannon 3 | . . . 3 Ballistic Gun 4 | 1 2 . 1 Ballistic Cannon . | . . . . Launcher 1 | . . 1 . Special Weapon . | . . . . Impact Weapon . | . . . . Slashing Weapon . | . . . . Piercing Weapon . | . . . . Special Melee Weapon . | . . . . Unidentified Prototypes 3 | . . . 3 Parts Lost 13 | . . 1 12 Power 2 | . . . 2 Propulsion 4 | . . 1 3 Utility 5 | . . . 5 Weapon 2 | . . . 2 Highest Loss Streak 5 | . . 1 5 To Critical Strikes . | . . . . Average Slot Usage (%) 86 | . 97 85 77 Engine 3 | . 2 . 7 Core 9 | . 11 14 1 Treads 16 | . 28 14 8 Device 6 | . . . 18 Storage 13 | . 14 14 11 Protection 11 | . 11 14 7 Energy Gun 9 | . 14 4 12 Energy Cannon 1 | . . . 3 Ballistic Gun 10 | . 14 14 2 Launcher 4 | . . 9 1 Naked Turns . | . . . . Heaviest Build 99 | 13 90 91 99 Greatest Support 40 | 40 40 20 20 Greatest Overweight (x) 30 | . 2 4 30 Average Overweight (x) 3 | . 1 4 5 Largest Inventory Capacity 25 | 8 25 25 25 Average Capacity 24 | 7 23 25 25 Most Carried 15 | 5 10 13 15 Average Carried 9 | 1 6 11 10 Final Capacity 25 | 8 25 25 25 Final Carried 13 | 2 9 13 8 Class Distribution -------------------- 81% | Mutant 18% | Scavenger-Mutant Dominant Class ---------------- Mutant | -10/Materials Mutant | -10/Mines Scavenger-Mutant | -9/Materials Resources | -11 -10 -10 -9 ----------- Run | Yrd Mat Min Mat Matter Collected 633 | 241 140 24 228 Remotely . | . . . . Salvage Created 1336 | . 322 41 973 Parts 76 | . 19 7 50 Haulers Intercepted 4 | . 1 . 3 Recyclers Shooed 1 | . . . 1 Parts Field Recycled . | . . . . Retrieved Matter . | . . . . Parts Self-Destructed . | . . . . Prevented . | . . . . Kills | -11 -10 -10 -9 ------- Run | Yrd Mat Min Mat Combat Hostiles Destroyed 26 | . 7 3 16 Guns 18 | . 7 3 8 Cannons 3 | . . . 3 AOE 4 | . . . 4 Classes Destroyed 8 | . 5 . 3 Worker 3 | . 2 . 1 Hauler 4 | . 1 . 3 Recycler 1 | . . . 1 Operator 1 | . 1 . . Watcher 1 | . . . 1 Swarmer 6 | . 3 3 . Grunt 18 | . 4 . 14 Sentry 2 | . . . 2 Best Kill Streak 5 | . 4 3 5 Combat Bots Only 3 | . 3 3 3 Max Kills in Single Turn 2 | . 2 1 2 Gunslinging 1 | . . . 1 Exploded 1 | . . . 1 Melee . | . . . . Uniques/NPCs Destroyed . | . . . . Combat | -11 -10 -10 -9 -------- Run | Yrd Mat Min Mat Hostile Shots Fired 214 | . 51 11 152 Missed 56 | . 15 4 37 Damage Taken 2069 | . 439 60 1570 Core 415 | . 8 . 407 Absorbed by Shields . | . . . . Redirected to Shielding 14 | . 6 8 . Regen/Repaired (Parts) 54 | . . . 54 Core Remaining (%) 98 | 100 . 96 . Volleys Fired 106 | . 50 4 52 Largest 2 | . 2 2 2 Hottest 136 | . 70 70 136 Shots Fired 203 | . 97 8 98 Gun 162 | . 97 8 57 Cannon 38 | . . . 38 Launcher 3 | . . . 3 Special . | . . . . Kinetic 60 | . 47 4 9 Thermal 92 | . 50 4 38 Explosive 3 | . . . 3 Electromagnetic 48 | . . . 48 Robot Hit Streak 8 | . 8 2 7 Robot Miss Streak 5 | . 5 2 4 Penetration Max . | . . . . Secondary Targets 7 | . 3 2 2 Max Gunslinging Chain 1 | . 1 1 1 Shots Hit Robots 134 | . 57 4 73 Core Hits 63 | . 20 3 40 Critical Kills . | . . . . Critical Parts Destroyed . | . . . . Critical Strikes 3 | . 3 . . Burn 3 | . 3 . . Melee Attacks . | . . . . Impact . | . . . . Slashing . | . . . . Piercing . | . . . . Sneak Attacks . | . . . . Combat Hostiles . | . . . . Follow-up Attacks . | . . . . Damage Inflicted 2330 | . 738 49 1543 Guns 1516 | . 732 47 737 Cannons 533 | . . . 533 Explosions 273 | . . . 273 Melee . | . . . . Ramming 8 | . 6 2 . Kinetic 375 | . 269 22 84 Thermal 1183 | . 463 25 695 Explosive 111 | . . . 111 Electromagnetic 653 | . . . 653 Impact . | . . . . Slashing . | . . . . Piercing . | . . . . Highest Corruption . | . . . . Average Corruption . | . . . . Corruption Purged . | . . . . Corruption Blocked . | . . . . Overload Shots . | . . . . Overflow Damage 8 | . . . 8 Projectiles . | . . . . Explosions 8 | . . . 8 Melee . | . . . . Knockbacks . | . . . . Impact . | . . . . Kinetic . | . . . . Secondary . | . . . . Self-Inflicted Damage 44 | . . . 44 Shots 3 | . . . 3 Rammed 2 | . 1 1 . Targets Rammed 2 | . 1 1 . Kicked . | . . . . Crushed . | . . . . Highest Temperature 648 | . 471 60 648 Average Temperature 160 | . 124 31 199 Received Heat Transfer 972 | . 231 . 741 Effects 16 | . 4 . 12 Shutdowns 1 | . 1 . . Energy Bleed 4 | . . . 4 Interference 3 | . 2 . 1 Matter Decay 1 | . . . 1 Short Circuit 1 | . . . 1 Damage (minor) 3 | . 1 . 2 Damage (major) 2 | . . . 2 Damage (core) 1 | . . . 1 Siege Activations . | . . . . Robots Corrupted . | . . . . Combat Hostiles . | . . . . Parts Fried 4 | . . . 4 Impact Corruptions . | . . . . Robots Melted 1 | . . . 1 Combat Hostiles 1 | . . . 1 Parts Melted 6 | . 3 . 3 Heat Transferred 2827 | . 1591 74 1162 Parts Sabotaged . | . . . . Parts Stolen . | . . . . Parts Stripped . | . . . . Power Chain Reactions 2 | . . . 2 Alert | -11 -10 -10 -9 ------- Run | Yrd Mat Min Mat Peak Influence 205 | . 132 70 205 Initial 7 | . . 7 . Average 38 | . 36 14 72 Maximum Alert Level 1 | . . . 1 Low Security (%) 99 | 100 100 100 97 Level 1 . | . . . 2 Level 2 . | . . . . Level 3 . | . . . . Level 4 . | . . . . Level 5 . | . . . . High Security . | . . . . Max Security . | . . . . Squads Dispatched 2 | . 1 . 1 Investigation 1 | . . . 1 Extermination . | . . . . Reinforcement 1 | . 1 . . Assault . | . . . . Garrison . | . . . . Intercept . | . . . . Searches Triggered . | . . . . Construction Impeded . | . . . . Haulers Reinforced . | . . . . Active Scanning Responses . | . . . . Cargo Convoy Interrupts . | . . . . Stealth | -11 -10 -10 -9 --------- Run | Yrd Mat Min Mat Distress Signals 1 | . . . 1 Communications Jammed . | . . . . Distress Signals . | . . . . Times Spotted 48 | . 20 3 25 Peak Tracking Total 4 | . 4 3 4 Tactical Retreats . | . . . . Traps | -11 -10 -10 -9 ------- Run | Yrd Mat Min Mat Traps Triggered . | . . . . Indirectly . | . . . . Trap Hack Attempts . | . . . . Triggered . | . . . . Disarmed . | . . . . Reprogrammed . | . . . . Reused . | . . . . Traps Extracted . | . . . . Installed . | . . . . Triggered 1 | . . . 1 Machines | -11 -10 -10 -9 ---------- Run | Yrd Mat Min Mat Machines Disabled 2 | . . . 2 Max in Single Turn 1 | . . . 1 Machines Repaired . | . . . . Machines Dismantled . | . . . . Machines Sabotaged . | . . . . Overloaded Fab Kills . | . . . . Hacking | -11 -10 -10 -9 --------- Run | Yrd Mat Min Mat Machines Accessed 5 | . 3 . 2 Terminals 4 | . 3 . 1 Fabricators . | . . . . Repair Stations 1 | . . . 1 Recycling Units . | . . . . Scanalyzers . | . . . . Garrison Access . | . . . . Total Hacks 10 | . 6 . 4 Successful 8 | . 4 . 4 Failed 2 | . 2 . . Catastrophic 1 | . 1 . . Database Lockouts . | . . . . Manual 6 | . 5 . 1 Terminals 8 | . 6 . 2 Fabricators . | . . . . Repair Stations 2 | . . . 2 Recycling Units . | . . . . Scanalyzers . | . . . . Garrison Access . | . . . . Terminal Hacks 6 | . 4 . 2 Unreport Threat 2 | . 1 . 1 Locate Traps 1 | . 1 . . Recall Reinforcements 1 | . 1 . . Hauler Manifests 1 | . . . 1 Zone Layout 1 | . 1 . . Fabricator Hacks . | . . . . Repair Station Hacks 2 | . . . 2 Scan Component 1 | . . . 1 Repair 1 | . . . 1 Recycling Unit Hacks . | . . . . Scanalyzer . | . . . . Garrison Access Hacks . | . . . . Unauthorized Hacks . | . . . . Terminals . | . . . . Fabricators . | . . . . Repair Stations . | . . . . Recycling Units . | . . . . Scanalyzers . | . . . . Garrison Access . | . . . . Data Cores Recovered . | . . . . Used . | . . . . Hacking Detections 1 | . 1 . . Full Trace Events 1 | . 1 . . Feedback Events . | . . . . Feedback Blocked . | . . . . Robot Schematics Acquired . | . . . . Robots Built . | . . . . Authchips . | . . . . Time . | . . . . Total Robot Build Rating . | . . . . Part Schematics Acquired . | . . . . Parts Built . | . . . . Authchips . | . . . . Time . | . . . . Total Part Build Rating . | . . . . Parts Repaired 1 | . . . 1 Time 51 | . . . 51 Parts Recycled . | . . . . Recycled Matter . | . . . . Retrieved Matter . | . . . . Retrieved Components . | . . . . Parts Scanalyzed . | . . . . Part Schematics Acquired . | . . . . Parts Damaged . | . . . . Bothacking | -11 -10 -10 -9 ------------ Run | Yrd Mat Min Mat Used RIF Installer . | . . . . Robots Hacked . | . . . . Non-combat . | . . . . Combat . | . . . . Robot Hacks Applied . | . . . . Relay Couplers Released . | . . . . Fabnet Peak Effective % . | . . . . Robots Rewired . | . . . . Allies Hacked . | . . . . Hacks Repelled . | . . . . Allies | -11 -10 -10 -9 -------- Run | Yrd Mat Min Mat Total Allies . | . . . . Largest Group . | . . . . Highest-Rated Group . | . . . . Highest-Rated Ally . | . . . . Total Orders . | . . . . Ally Attacks . | . . . . Total Damage . | . . . . Kills . | . . . . Allies Corrupted . | . . . . Allies Melted . | . . . . Intel | -11 -10 -10 -9 ------- Run | Yrd Mat Min Mat Robot Analysis Total . | . . . . Derelict Logs Recovered . | . . . . Drone Launches . | . . . . Drone Recoveries . | . . . . Exploration | -11 -10 -10 -9 ------------- Run | Yrd Mat Min Mat Turns Passed 5150 | 98 1458 1939 1655 Spaces Moved 1176 | 67 431 400 278 Core 29 | 20 . . 9 Treads 1126 | 47 431 400 248 Legs 21 | . . . 21 Wheels . | . . . . Hover . | . . . . Flight . | . . . . Fastest Speed 50 | 50 160 480 480 Average Speed 406 | 127 301 480 529 Slowest Speed 1550 | 160 320 480 1550 Overloaded Moves . | . . . . Propulsion Burnouts . | . . . . Robots Hopped . | . . . . Cave-ins Triggered . | . . . . Exploration Rate (%) 41 | 3 65 78 21 Regions Visited 3 Branch Regions 1 Pre-discovered Areas . | . . . . Known Exits Taken . | . . . . Unknown Exits Taken 3 | 1 1 1 . Scrap Searched 2 | . . 2 . Spaces Dug . | . . . . Terrain Destroyed 33 | . . . 33 Melee . | . . . . Projectile . | . . . . AOE 33 | . . . 33 Terrain Rammed . | . . . . Walls Destroyed . | . . . . Machines Disabled . | . . . . Actions | -11 -10 -10 -9 --------- Run | Yrd Mat Min Mat Total 1379 | 80 502 411 386 Wait . | . . . . Move 1173 | 66 430 399 278 Hop . | . . . . Pick Up 46 | 8 12 5 21 Fast Attach . | . . . . Attach 29 | 6 5 1 17 Detach 1 | . . . 1 Swap 1 | . . . 1 Drop 21 | . 4 1 16 Fire 106 | . 50 4 52 Melee . | . . . . Ram . | . . . . Kick . | . . . . Crush 2 | . 1 1 . Escape Stasis . | . . . . Rewire . | . . . . Trap . | . . . . Miscellaneous . | . . . . Route ------- -11/Scrapyard -10/Materials (discovered 2 exits: *Mat / [*Min]) -10/Mines -9/Materials (discovered 1 exit: [*Sto]) History --------- Turn | Location | Event 34 | -11/Scrapyard | Discovered new exit (range 15) 99 | -11/Scrapyard | Entered Materials 315 | -10/Materials | Build established: Mutant 724 | -10/Materials | Discovered new exit (range 13) 1062 | -10/Materials | Discovered new exit (range 8) 1557 | -10/Materials | Entered Mines 1691 | -10/Mines | Found a hidden stash of uninstalled traps 1803 | -10/Mines | Assembled infested the area 2124 | -10/Mines | YI-UF0 nonchalantly dropped a Grenade Launcher on the ground 3443 | -10/Mines | Discovered new exit (range 7) 3496 | -10/Mines | Entered Materials 3496 | -9/Materials | Evolved 2 slots: Utility x2 3957 | -9/Materials | Build established: Scavenger-Mutant 4260 | -9/Materials | Repaired Imp. EM Shotgun 4867 | -9/Materials | Core integrity fell below 50% 4876 | -9/Materials | Build established: Mutant 4910 | -9/Materials | Lost 5 parts (1p1n2u1w) 5073 | -9/Materials | Core integrity fell below 20% 5150 | -9/Materials | Discovered new exit (range 8) 5151 | -9/Materials | Destroyed by Y-45 Defender with Heavy Assault Rifle Last Messages --------------- U-05 Engineer lays Concrete. Acquired 5 matter. Lgt. Armor Plating destroyed. Sensor Array destroyed. Matter Filter disabled. G-34 Mercenary critical meltdown. Heat Sink melted. Overheating: Energy bleed (-7). Experienced players can activate Tactical HUD mode in the options menu, or press Ctrl-F7, for more detailed HUD info. Overheating: Adv. Beam Cannon damaged (-7). Overheating: Aluminum Leg damaged (-5). Aluminum Leg destroyed. Aluminum Leg melted. G-34 Mercenary destroyed. Acquired 24 matter. K-01 Serf collects debris. EXIT=FOUND Adv. Beam Cannon destroyed. Map ----- +----------------------------------------------------+ | #????#????????????????????????????????????????? | | ######??#?#?#???##???????????????????????????????? | | #?#?##?#??###????????????????????????????????????? | | ###?###?#?###???????#????????????????????????????? | | ####???##??##? ? ???????????????????????????????? | | ?###########?? ? ?????? ?????????????????????????? | | ?# #?# "?????? ???????????????????????????? | | ##""" ### ??? ???????????????????????????????? | | [#"R ###??????"???? ??????????????????????? | | !#""" """ ##??? ?? ???? ??????????????????????? | | [+ """ ## ?????? ??? ??????????????????????? | | #! """ ### ????? ???? ??????????????????????? | | !# """ ##???????????? ??????????????????????? | | ## #### ????????? ??????????????????????? | | ## + # ????"??#? ??????????????????????? | | ##############???"?"???? ??????????????????????? | | #?####?#####?#??"? ??"?? ??????????????????????? | | ###???#??###?#? ?"???? Y ??????????????????????? | | #??###########?""??""??? ??????????????????????? | | #?## #??"? ??? ??????????????????????? | | #### #??"? ????# #??????????????????????? | | #### #??? ????# #??????????????????????? | | #### ] #??##+####?# #??????????????????????? | | #### ! #### ?? #??????????????????????? | | + #### %#####/####???????????????????? | | #### ]![] + *% *# %@ #???????????????????? | | #??# ![[[* # = # %""""#???????????????????? | | ########+##### # """""#???????????????????? | | %[ % [ #%[ """""#???????????????????? | | =%! % +* """""#???????????????????? | | =% *[! #=k """""##??????????????????? | | %########### ## """""????????????????????? | | ^ ???????? # ## """""????????????????????? | | ???????? # ## ????????????????????? | | """ ??"?????# ###########???????????????????? | | """ ????????# #?#???????????????????????????? | | """ ?"? ??# #?????????????????????????????? | | ### """ ??? ??## #?#???????????????????????????? | | ??# ? ?? ?#+#?#???????????????????????????? | | ??# ??? ??????????????????????????????????????? | | ?## ????? ?????????? ?????????????????????????? | | ?## ???###?????????????????????????????????????? | | ??"?? ???????? ?#????????????????????????????????? | | ?????????????????????????????????????????????????? | | ????????? ???? +????????????????????????????????? | | ?????????? ?????#????????????????????????????????? | | ?????????????????????????????????????????????????? | | ?????????????????????????????????????????????????? | | ?????????????????????????????????????????????????? | | ?????????????????????????????????????????????????? | +----------------------------------------------------+ Best States ------------- Heat Dissipation 28 Energy Generation 14 Energy Capacity 280 Matter Stores 300 Matter Capacity 300 Sight Range 18 Robot Scan Range 14 Terrain Scan Range 16 Terrain Scan Density 10 Armor Coverage 150 Power Shielding 33 Evasion (%) 50 Recoil Reduction 2 Item Schematics ----------------- None Robot Schematics ------------------ None Fabricated ------------ Nothing Alien Tech Used ----------------- None Achievements -------------- None Challenges ------------ None Game ------ Seed StormGhostBlaster Manual? 0 Play Time 00:18:34 Cumulative 2.3 hours Start 2024.04.05 @ 20:41:13 End 2024.04.05 @ 21:02:01 Sessions 1 Manual Loads 0 Difficulty Rogue Special Mode None Game No. 9 Rogue 9 Adventurer 0 Explorer 0 Win Type - Total 0 Types 0/0/0/0/0/0/0/0/0 Lore% 1 Gallery% 7 Achievement% 8 Wizard Run 0 Options --------- Layout 1 ASCII 0 Keyboard 0 Movement Arrows Keybinds 0 Fullscreen 1 Font 24/Smallcaps Map View 50x35 Zoom Use 0% Tactical HUD 0 Map Filters NONE Filters NONE Steam 0 RUN: d506797f-9094-4015-ad0f-140c4bcb47c1